fUST/lending_fUST_20241007
["ID","MTS","AMOUNT","RATE_DAILY","PERIOD"]
[339991088,1728289846319,-263.0,0.00023262,2]
[339991090,1728289846329,-263.0,0.00023262,2]
[339991092,1728289846339,-153.0,0.00023263,2]
[339991094,1728289846349,-153.0,0.00023263,2]
[339991096,1728289846359,-153.0,0.00023263,2]
[339991098,1728289846370,-153.0,0.00023263,2]
[339991100,1728289846380,-153.0,0.00023263,2]
[339991102,1728289846390,-153.0,0.00023263,2]
[339991104,1728289846400,-153.0,0.00023263,2]
[339991106,1728289846409,-153.0,0.00023263,2]
[339991108,1728289846418,-153.0,0.00023263,2]
[339991110,1728289846427,-153.0,0.00023263,2]
[339991112,1728289846436,-153.0,0.00023263,2]
[339991114,1728289846445,-153.0,0.00023263,2]
[339991116,1728289846455,-153.0,0.00023263,2]
[339991118,1728289846464,-153.0,0.00023263,2]
[339991120,1728289846473,-150.0,0.00024214,2]
[339991122,1728289846483,-500.0,0.00024214,2]
[339991124,1728289846492,-43400.83165727,0.00024453,2]
[339991126,1728289846502,-960.46653612,0.0002449,2]
[339991128,1728289846511,-1000.0,0.0002459,2]
[339991130,1728289846522,-150.0,0.000246,2]
[339991133,1728289846534,-334.58136855,0.000246,2]
[339991136,1728289846551,-655.3735034,0.000246,2]
[339991138,1728289846565,-0.17902232,0.000246,2]
[339991140,1728289846575,-200.0,0.00024658,15]
[339991142,1728289846584,-413.56097768,0.00024658,2]
[339991430,1728290734119,-163.450797,0.00018,2]
[339991431,1728290734142,-193.38070615,0.000199,2]
[339991432,1728290734165,-150.0,0.00021,2]
[339991433,1728290734186,-5.19382466,0.00022684,2]
[339991434,1728290826109,-300.0,0.00021999,2]
[339991435,1728290826130,-500.0,0.00022,2]
[339991436,1728290826151,-500.0,0.00022,2]
[339991437,1728290826172,-7.26806841,0.00022,2]
[339991438,1728290951210,-249.47451438,0.00022,2]
[339991540,1728291038465,-243.25741721,0.00022,2]
[339991542,1728291038475,-500.0,0.00022,2]
[339991544,1728291038484,-500.0,0.00022,2]
[339991546,1728291038494,-500.0,0.00022,2]
[339991548,1728291038504,-500.0,0.00022,2]
[339991550,1728291038513,-500.0,0.00022,2]
[339991552,1728291038522,-500.0,0.00022,2]
[339991554,1728291038531,-500.0,0.00022,2]
[339991556,1728291038540,-500.0,0.00022,2]
[339991558,1728291038550,-500.0,0.00022,2]
[339991560,1728291038559,-500.0,0.00022,2]
[339991563,1728291038573,-500.0,0.00022,2]
[339991565,1728291038582,-183.97352348,0.00022,2]
[339991567,1728291038594,-284.82829781,0.00022,2]
[339991569,1728291038606,-31.19817871,0.00022,2]
[339991571,1728291038616,-293.0,0.00022,2]
[339991573,1728291038625,-75.80182129,0.00022874,2]
[339991768,1728291040464,-598.0205773,0.00022874,2]
[339992029,1728291046373,-589.79020823,0.00022874,2]
[339992030,1728291046385,-1762.30852308,0.00022874,2]
[339992031,1728291046395,-153.0,0.00023286,2]
[339992032,1728291046405,-153.0,0.00023286,2]
[339992033,1728291046415,-153.0,0.00023286,2]
[339992038,1728291046576,-153.0,0.00023286,2]
[339992039,1728291046590,-153.0,0.00023286,2]
[339992040,1728291046601,-153.0,0.00023286,2]
[339992041,1728291046610,-220.0,0.00023289,2]
[339992042,1728291046620,-220.0,0.00023289,2]
[339992043,1728291046630,-220.0,0.00023289,2]
[339992044,1728291046641,-220.0,0.00023289,2]
[339992045,1728291046650,-220.0,0.00023289,2]
[339992046,1728291046660,-220.0,0.00023289,2]
[339992047,1728291046670,-220.0,0.00023289,2]
[339992048,1728291046679,-220.0,0.00023289,2]
[339992049,1728291046689,-220.0,0.00023289,2]
[339992050,1728291046699,-220.0,0.00023289,2]
[339992051,1728291046709,-220.0,0.00023289,2]
[339992052,1728291046719,-220.0,0.00023289,2]
[339992053,1728291046729,-220.0,0.00023289,2]
[339992054,1728291046738,-220.0,0.00023289,2]
[339992055,1728291046749,-220.0,0.00023289,2]
[339992056,1728291046758,-220.0,0.00023289,2]
[339992057,1728291046768,-220.0,0.00023289,2]
[339992058,1728291046778,-220.0,0.00023289,2]
[339992059,1728291046788,-220.0,0.00023289,2]
[339992060,1728291046797,-220.0,0.00023289,2]
[339992061,1728291046807,-220.0,0.00023289,2]
[339992062,1728291046816,-220.0,0.00023289,2]
[339992063,1728291046826,-220.0,0.00023289,2]
[339992064,1728291046836,-220.0,0.00023289,2]
[339992065,1728291046846,-220.0,0.00023289,2]
[339992066,1728291046856,-220.0,0.00023289,2]
[339992067,1728291046865,-220.0,0.00023289,2]
[339992068,1728291046875,-220.0,0.00023289,2]
[339992069,1728291046885,-220.0,0.00023289,2]
[339992070,1728291046894,-220.0,0.00023289,2]
[339992071,1728291046904,-220.0,0.00023289,2]
[339992072,1728291046914,-220.0,0.00023289,2]
[339992073,1728291046924,-220.0,0.00023289,2]
[339992074,1728291046934,-220.0,0.00023289,2]
[339992075,1728291046944,-220.0,0.00023289,2]
[339992076,1728291046954,-220.0,0.00023289,2]
[339992077,1728291046964,-220.0,0.00023289,2]
[339992078,1728291046974,-220.0,0.00023289,2]
[339992079,1728291046984,-153.0,0.0002329,2]
[339992080,1728291046994,-153.0,0.0002329,2]
[339992081,1728291047004,-153.0,0.0002329,2]
[339992082,1728291047013,-153.0,0.0002329,2]
[339992083,1728291047023,-153.0,0.0002329,2]
[339992084,1728291047032,-153.0,0.0002329,2]
[339992085,1728291047042,-153.0,0.0002329,2]
[339992086,1728291047052,-153.0,0.0002329,2]
[339992087,1728291047061,-153.0,0.0002329,2]
[339992088,1728291047072,-153.0,0.0002329,2]
[339992089,1728291047082,-153.0,0.0002329,2]
[339992090,1728291047092,-153.0,0.0002329,2]
[339992091,1728291047101,-153.0,0.0002329,2]
[339992092,1728291047111,-153.0,0.0002329,2]
[339992093,1728291047121,-153.0,0.0002329,2]
[339992094,1728291047130,-153.0,0.0002329,2]
[339992095,1728291047140,-153.0,0.0002329,2]
[339992096,1728291047149,-153.0,0.0002329,2]
[339992097,1728291047159,-153.0,0.0002329,2]
[339992098,1728291047169,-153.0,0.0002329,2]
[339992099,1728291047179,-153.0,0.0002329,2]
[339992100,1728291047189,-153.0,0.0002329,2]
[339992101,1728291047199,-153.0,0.0002329,2]
[339992102,1728291047209,-153.0,0.0002329,2]
[339992103,1728291047219,-214.72595841,0.00023292,7]
[339992104,1728291047228,-20379.73048007,0.00023292,2]
[339992105,1728291047244,-5103.54058993,0.00023292,2]
[339992106,1728291047253,-153.0,0.00023293,2]
[339992107,1728291047263,-153.0,0.00023293,2]
[339992108,1728291047274,-153.0,0.00023293,2]
[339992109,1728291047283,-153.0,0.00023293,2]
[339992110,1728291047293,-153.0,0.00023293,2]
[339992111,1728291047302,-153.0,0.00023293,2]
[339992112,1728291047311,-153.0,0.00023293,2]
[339992113,1728291047321,-153.0,0.00023293,2]
[339992114,1728291047330,-153.0,0.00023293,2]
[339992115,1728291047340,-153.0,0.00023293,2]
[339992116,1728291047350,-153.0,0.00023293,2]
[339992117,1728291047359,-81.88518486,0.00023293,2]
[339992118,1728291047373,-71.11481514,0.00023293,2]
[339992119,1728291047383,-153.0,0.00023293,2]
[339992120,1728291047393,-153.0,0.00023293,2]
[339992121,1728291047403,-153.0,0.00023293,2]
[339992122,1728291047412,-153.0,0.00023293,2]
[339992123,1728291047421,-153.0,0.00023293,2]
[339992124,1728291047431,-153.0,0.00023293,2]
[339992125,1728291047441,-153.0,0.00023293,2]
[339992126,1728291047451,-153.0,0.00023293,2]
[339992127,1728291047461,-153.0,0.00023296,2]
[339992128,1728291047470,-153.0,0.00023296,2]
[339992129,1728291047480,-153.0,0.00023296,2]
[339992130,1728291047490,-153.0,0.00023296,2]
[339992131,1728291047501,-153.0,0.00023296,2]
[339992132,1728291047510,-153.0,0.00023296,2]
[339992133,1728291047519,-153.0,0.00023296,2]
[339992134,1728291047529,-17.86071191,0.00023296,2]
[339992135,1728291047584,-135.13928809,0.00023296,2]
[339992136,1728291047594,-153.0,0.00023296,2]
[339992137,1728291047603,-153.0,0.00023296,2]
[339992138,1728291047613,-153.0,0.00023296,2]
[339992139,1728291047622,-37.94071191,0.00023296,2]
[339992141,1728291115842,184.14229415,0.00014,2]
[339992142,1728291115870,3847.60542354,0.00014,2]
[339992143,1728291120798,394.21652389,0.00020001,120]
[339992144,1728291124189,-243461.33667683,0.00033132,120]
[339992145,1728291124226,-864.7208944,0.00033132,35]
[339992146,1728291124265,-1607.91341212,0.00033132,120]
[339992147,1728291124300,-420.31914105,0.00033132,30]
[339992148,1728291124330,-309.2491834,0.00033132,120]
[339992149,1728291124369,-1580.58213173,0.00033132,120]
[339992150,1728291124400,-813.644675,0.00033132,35]
[339992151,1728291124437,-288.9132915,0.00033132,120]
[339992152,1728291124470,-190.1767532,0.00033132,120]
[339992153,1728291124498,-1428.0,0.00033132,120]
[339992154,1728291124533,-47573.55330145,0.00033132,120]
[339992155,1728291124565,-75254.0,0.00033132,32]
[339992156,1728291124593,-83253.12167955,0.00033132,30]
[339992157,1728291124624,-1515.80491791,0.00033132,120]
[339992158,1728291124657,-795.38049863,0.00033132,35]
[339992159,1728291124686,-5904.18777836,0.00033132,120]
[339992160,1728291124716,-280.29281,0.00033132,120]
[339992161,1728291124744,-1034.85253027,0.00033132,120]
[339992162,1728291124771,-15535.19022276,0.00033132,120]
[339992163,1728291124801,-80103.19785165,0.00033132,60]
[339992164,1728291124831,-14806.50208637,0.00033132,30]
[339992165,1728291124861,-12895.59532622,0.00033132,60]
[339992166,1728291124893,-27821.10972517,0.00033132,120]
[339992167,1728291124921,-1513.63378443,0.00033132,120]
[339992168,1728291124951,-1144.75568725,0.00033132,120]
[339992169,1728291124983,-210.57768023,0.00033132,120]
[339992170,1728291125015,-286.678032,0.00033132,120]
[339992171,1728291125044,-3616.415786,0.00033132,120]
[339992172,1728291125070,-772.6649413,0.00033132,35]
[339992173,1728291125101,-116988.49353167,0.00033132,60]
[339992174,1728291125130,-9351.0,0.00033132,30]
[339992175,1728291125159,-337.0,0.00033132,120]
[339992176,1728291125189,-3000.0,0.00033132,113]
[339992177,1728291125218,-13744.55800677,0.00033132,120]
[339992178,1728291125245,-1626.00296947,0.00033132,120]
[339992179,1728291125277,-242.80051078,0.00033132,120]
[339992180,1728291125306,-396.11940004,0.00033132,30]
[339992181,1728291125339,-221.8623221,0.00033132,30]
[339992182,1728291125371,-16353.83134698,0.00033132,60]
[339992183,1728291125398,-103719.84776943,0.00033132,60]
[339992184,1728291125426,-875.18926642,0.00033132,35]
[339992185,1728291125452,-305.5857382,0.00033132,120]
[339992186,1728291125479,-1000.0,0.00033132,120]
[339992187,1728291125507,-1000.0,0.00033132,120]
[339992188,1728291125538,-185.0,0.00033132,30]
[339992189,1728291125567,-193.43691792,0.00033132,120]
[339992190,1728291125596,-348.199999,0.00033132,120]
[339992191,1728291125625,-823.5391575,0.00033132,35]
[339992192,1728291125653,-1352.89263378,0.00033132,120]
[339992193,1728291125681,-1772.90165342,0.00033132,30]
[339992194,1728291125710,-781.48588165,0.00033132,30]
[339992195,1728291125741,-276.403288,0.00033132,30]
[339992196,1728291125769,-1520.43357287,0.00033132,120]
[339992197,1728291125797,-209852.26397075,0.00033132,90]
[339992198,1728291125825,-234877.95140356,0.00033132,60]
[339992199,1728291125851,-67781.24616605,0.00033132,60]
[339992200,1728291125878,-150.0,0.00033132,30]
[339992201,1728291125906,-168.210134,0.00033132,30]
[339992202,1728291126097,-250.0,0.00033132,30]
[339992203,1728291126131,-250.0,0.00033132,30]
[339992204,1728291126156,-250.0,0.00033132,30]
[339992205,1728291126186,-250.0,0.00033132,30]
[339992206,1728291126213,-250.0,0.00033132,30]
[339992207,1728291126239,-250.0,0.00033132,30]
[339992208,1728291126268,-250.0,0.00033132,30]
[339992209,1728291126294,-250.0,0.00033132,30]
[339992210,1728291126321,-250.0,0.00033132,30]
[339992211,1728291126351,-250.0,0.00033132,30]
[339992212,1728291126377,-250.0,0.00033132,30]
[339992213,1728291126404,-250.0,0.00033132,30]
[339992214,1728291160768,-1000.0,0.00024,120]
[339992215,1728291160792,-200.0,0.00024658,15]
[339992216,1728291160816,-2418.94714607,0.0002466,7]
[339992217,1728291160842,-468.82,0.0002466,3]
[339992218,1728291160868,-73389.67,0.0002466,10]
[339992219,1728291160891,-61158.06,0.0002466,10]
[339992220,1728291160915,-88067.6,0.0002467,10]
[339992221,1728291160941,-16870.4948335,0.0002468,3]
[339992222,1728291160966,-784.63275159,0.0002468,3]
[339992223,1728291160989,-338.29391,0.0002468,7]
[339992224,1728291161012,-338.29391,0.0002468,7]
[339992225,1728291161036,-151.0,0.0002468,7]
[339992226,1728291161060,-151.0,0.0002468,7]
[339992227,1728291161089,-67481.9793338,0.0002468,3]
[339992228,1728291161115,-3138.53100636,0.0002468,3]
[339992229,1728291161139,-134963.958668,0.0002469,3]
[339992230,1728291161164,-10200.2257707,0.0002469,3]
[339992231,1728291161187,-151.0,0.0002469,7]
[339992232,1728291161211,-151.0,0.0002469,7]
[339992233,1728291161238,-253.814503,0.0002469,7]
[339992234,1728291161261,-253.814503,0.0002469,7]
[339992235,1728291161301,-935.636055,0.0002469,7]
[339992236,1728291161333,-935.636055,0.0002469,7]
[339992237,1728291161361,-338.29391,0.0002469,7]
[339992238,1728291161386,-338.29391,0.0002469,7]
[339992239,1728291161410,-151.0,0.0002469,7]
[339992240,1728291161434,-286.548196,0.0002469,7]
[339992241,1728291161460,-17465.46926972,0.000247,7]
[339992242,1728291161484,-73010.50814205,0.000247,14]
[339992243,1728291161509,-105701.44,0.000247,14]
[339992244,1728291161534,-425244.82,0.000247,14]
[339992245,1728291161558,-403.46,0.000247,7]
[339992246,1728291161581,-5450.88,0.000247,14]
[339992247,1728291161606,-151.0,0.000247,7]
[339992248,1728291161631,-151.0,0.000247,7]
[339992249,1728291161655,-151.0,0.000247,7]
[339992250,1728291161681,-151.0,0.000247,7]
[339992251,1728291161704,-150.112233,0.000247,4]
[339992252,1728291161728,-150.112233,0.000247,4]
[339992253,1728291161752,-150.112233,0.000247,5]
[339992254,1728291161776,-150.112233,0.000247,3]
[339992255,1728291161799,-150.112233,0.000247,3]
[339992256,1728291161969,-150.112233,0.000247,3]
[339992257,1728291161993,-150.112233,0.000247,4]
[339992258,1728291162016,-291.033646,0.000247,4]
[339992259,1728291162039,-153.552822,0.000247,7]
[339992260,1728291162062,-151.0,0.000247,7]
[339992261,1728291162085,-151.0,0.000247,7]
[339992262,1728291162109,-248.322176,0.000247,7]
[339992263,1728291162133,-151.0,0.000247,7]
[339992264,1728291162156,-270.74919,0.000247,7]
[339992265,1728291162179,-151.0,0.000247,7]
[339992266,1728291162203,-151.0,0.000247,7]
[339992267,1728291162226,-151.0,0.000247,7]
[339992268,1728291162249,-155.437433,0.000247,7]
[339992269,1728291162276,-151.0,0.000247,7]
[339992270,1728291162300,-253.814503,0.000247,7]
[339992272,1728291162326,-253.814503,0.000247,7]
[339992273,1728291162351,-253.814503,0.000247,7]
[339992274,1728291162375,-253.814503,0.000247,7]
[339992275,1728291162398,-253.814503,0.000247,7]
[339992276,1728291162421,-253.814503,0.000247,7]
[339992277,1728291162445,-935.636055,0.000247,7]
[339992278,1728291162468,-935.636055,0.000247,7]
[339992279,1728291162492,-935.636055,0.000247,7]
[339992280,1728291162516,-935.636055,0.000247,7]
[339992281,1728291162539,-935.636055,0.000247,7]
[339992282,1728291162562,-935.636055,0.000247,7]
[339992283,1728291162585,-338.29391,0.000247,7]
[339992284,1728291162610,-338.29391,0.000247,7]
[339992285,1728291162639,-338.29391,0.000247,7]
[339992286,1728291162662,-338.29391,0.000247,7]
[339992288,1728291162687,-338.29391,0.000247,7]
[339992289,1728291162713,-338.29391,0.000247,7]
[339992290,1728291162736,-151.0,0.000247,7]
[339992291,1728291162761,-151.0,0.000247,7]
[339992292,1728291162784,-151.0,0.000247,7]
[339992293,1728291162807,-151.0,0.000247,7]
[339992294,1728291162831,-151.0,0.000247,7]
[339992295,1728291162855,-1000.5,0.00025,31]
[339992296,1728291162879,-1020.5,0.00025,31]
[339992297,1728291162902,-470.0,0.00025,30]
[339992298,1728291162925,-4429.85892572,0.00025,120]
[339992299,1728291162948,-155.0,0.00025,7]
[339992300,1728291162971,-1000.0,0.00025,120]
[339992301,1728291162995,-200.0,0.00026,120]
[339992302,1728291163017,-1000.0,0.00026,120]
[339992303,1728291163041,-338.29391,0.00026117,7]
[339992304,1728291163066,-338.29391,0.00026117,7]
[339992305,1728291163089,-151.0,0.00026117,7]
[339992306,1728291163115,-403.46,0.000269,7]
[339992308,1728291163140,-1000.0,0.00027,120]
[339992309,1728291163164,-150.112241,0.000271,7]
[339992310,1728291163189,-784.63275159,0.00027352,4]
[339992311,1728291163213,-784.63275159,0.0002739,4]
[339992312,1728291163236,-400.0,0.00027397,60]
[339992313,1728291163260,-182718.95,0.000274,14]
[339992314,1728291163285,-105701.44,0.000274,14]
[339992315,1728291163308,-425244.82,0.000274,14]
[339992316,1728291163332,-5450.88,0.000274,14]
[339992317,1728291163358,-151.0,0.000274,7]
[339992318,1728291163387,-151.0,0.000274,7]
[339992320,1728291163411,-151.0,0.000274,7]
[339992321,1728291163445,-151.0,0.000274,7]
[339992322,1728291163476,-151.0,0.000274,7]
[339992323,1728291163503,-151.0,0.000274,7]
[339992324,1728291163530,-253.814503,0.000274,7]
[339992325,1728291163555,-253.814503,0.000274,7]
[339992326,1728291163581,-253.814503,0.000274,7]
[339992327,1728291163613,-253.814503,0.000274,7]
[339992328,1728291163639,-253.814503,0.000274,7]
[339992329,1728291163664,-253.814503,0.000274,7]
[339992330,1728291163689,-935.636055,0.000274,7]
[339992331,1728291163714,-935.636055,0.000274,7]
[339992332,1728291163740,-935.636055,0.000274,7]
[339992333,1728291163766,-935.636055,0.000274,7]
[339992334,1728291163791,-935.636055,0.000274,7]
[339992335,1728291163815,-935.636055,0.000274,7]
[339992336,1728291163840,-338.29391,0.000274,7]
[339992337,1728291163865,-338.29391,0.000274,7]
[339992338,1728291163889,-338.29391,0.000274,7]
[339992339,1728291163913,-338.29391,0.000274,7]
[339992340,1728291163939,-338.29391,0.000274,7]
[339992341,1728291163965,-338.29391,0.000274,7]
[339992342,1728291163990,-151.0,0.000274,7]
[339992343,1728291164014,-151.0,0.000274,7]
[339992344,1728291164039,-151.0,0.000274,7]
[339992345,1728291164063,-280.07904186,0.0002799,60]
[339992346,1728291164086,-160.13872125,0.00028,120]
[339992347,1728291164110,-200.0,0.00028,120]
[339992348,1728291164141,-1000.0,0.00028,120]
[339992349,1728291164167,-505.22292054,0.00028077,5]
[339992350,1728291164192,-507.43152012,0.00028077,5]
[339992351,1728291164217,-338.29391,0.00028768,7]
[339992352,1728291164241,-338.29391,0.00028768,7]
[339992353,1728291164265,-151.0,0.00028768,7]
[339992354,1728291164292,-403.46,0.00029,7]
[339992355,1728291164316,-1327.38,0.00029,120]
[339992356,1728291164340,-1000.0,0.00029,120]
[339992357,1728291164367,-500.58199736,0.00029473,5]
[339992358,1728291164390,-637.6096,0.00029492,30]
[339992359,1728291164413,-182718.95,0.000295,14]
[339992360,1728291164437,-105701.44,0.000295,14]
[339992361,1728291164462,-151.0,0.000295,7]
[339992362,1728291164485,-151.0,0.000295,7]
[339992363,1728291164510,-157.182076,0.000295,7]
[339992364,1728291164676,-253.814503,0.000295,7]
[339992365,1728291164700,-253.814503,0.000295,7]
[339992366,1728291164723,-253.814503,0.000295,7]
[339992367,1728291164746,-253.814503,0.000295,7]
[339992368,1728291164774,-935.636055,0.000295,7]
[339992369,1728291164798,-935.636055,0.000295,7]
[339992370,1728291164822,-935.636055,0.000295,7]
[339992371,1728291164845,-935.636055,0.000295,7]
[339992372,1728291164870,-5450.88,0.000296,14]
[339992373,1728291164893,-500.35552968,0.00029673,5]
[339992374,1728291164917,-500.35319193,0.00029673,5]
[339992375,1728291164941,-425244.82,0.000297,14]
[339992376,1728291164965,-151.0,0.000297,7]
[339992377,1728291164989,-253.814503,0.000297,7]
[339992378,1728291165013,-253.814507,0.000297,7]
[339992379,1728291165037,-935.636055,0.000297,7]
[339992380,1728291165060,-935.636046,0.000297,7]
[339992381,1728291165084,-721.59923312,0.0002988,30]
[339992382,1728291165108,-50000.0,0.0003,7]
[339992383,1728291165131,-200.0,0.0003,120]
[339992384,1728291165154,-328.63158748,0.0003,8]
[339992385,1728291165176,-500.0,0.0003,20]
[339992386,1728291165199,-350330.29611591,0.0003,120]
[339992387,1728291165222,-13492.98642406,0.0003,7]
[339992394,1728291172866,-150.0,0.0003,120]
[339992395,1728291172893,-1000.0,0.0003,120]
[339992396,1728291172920,-1000.0,0.00030136,120]
[339992397,1728291172944,-400.0,0.00030137,60]
[339992398,1728291172970,-1000.0,0.0003041,120]
[339992399,1728291172994,-1000.0,0.00030684,120]
[339992400,1728291173020,-500.0,0.0003087,120]
[339992402,1728291173044,-1000.0,0.00030958,120]
[339992403,1728291173068,-1202.70785079,0.00031,120]
[339992404,1728291173092,-1000.0,0.00031,120]
[339992405,1728291173117,-1000.0,0.00031232,120]
[339992406,1728291173141,-1000.0,0.00031506,120]
[339992407,1728291173165,-1000.0,0.0003178,120]
[339992408,1728291173190,-500.0,0.0003187,120]
[339992409,1728291173216,-308.0,0.00032,120]
[339992410,1728291173241,-1000.0,0.00032,120]
[339992411,1728291173265,-253.647177,0.00032,30]
[339992412,1728291173293,-1000.0,0.00032054,120]
[339992413,1728291173319,-1000.0,0.00032328,120]
[339992414,1728291173344,-1000.0,0.00032602,120]
[339992415,1728291173373,-500.0,0.0003287,120]
[339992417,1728291173399,-1000.0,0.00032876,120]
[339992418,1728291173424,-400.0,0.00032877,60]
[339992419,1728291173451,-403.46,0.000329,30]
[339992420,1728291173475,-780.29933829,0.00033,30]
[339992421,1728291173499,-3000.0,0.00033,107]
[339992422,1728291173525,-363112.4291349,0.00033,120]
[339992423,1728291173550,-1000.0,0.00033,120]
[339992424,1728291173578,-1000.0,0.0003315,120]
[339992425,1728291173604,-503.98,0.0003333,120]
[339992426,1728291173639,-419.38651701,0.00033424,120]
[339992427,1728291173665,-500.0,0.0003399,120]
[339992428,1728291173692,-300.0,0.00034,120]
[339992429,1728291173718,-400.0,0.00034,120]
[339992431,1728291173744,-250.0,0.00034,30]
[339992432,1728291173774,-500.0,0.0003487,120]
[339992433,1728291173799,-10103.0,0.000349,30]
[339992434,1728291173825,-560.81004495,0.00035,120]
[339992435,1728291173851,-154.73994329,0.00035,120]
[339992436,1728291173877,-96283.4941132,0.00035,30]
[339992437,1728291173902,-307.49319026,0.00035,60]
[339992438,1728291173928,-1000.0,0.00035,120]
[339992439,1728291173953,-200.0,0.00035,120]
[339992440,1728291173979,-403.46,0.000353,30]
[339992441,1728291174004,-1837.2,0.00035616,120]
[339992442,1728291174029,-512.60615735,0.00035616,60]
[339992443,1728291174053,-1313.818127,0.00035616,120]
[339992444,1728291174078,-500.0,0.00035628,30]
[339992445,1728291174103,-500.0,0.0003587,120]
[339992446,1728291174130,-297.32935592,0.00036,30]
[339992447,1728291174154,-500.0,0.00036,120]
[339992448,1728291174179,-250.0,0.00036,30]
[339992449,1728291174204,-369.55601065,0.000365,120]
[339992450,1728291174230,-5000.0,0.000365,30]
[339992451,1728291174255,-1837.2,0.00036575,120]
[339992452,1728291174282,-478.0,0.00036666,120]
[339992453,1728291174306,-198.43406114,0.00036986,60]
[339992454,1728291174332,-1000.0,0.00037,120]
[339992455,1728291174359,-2486008.94897825,0.00037065,90]
[339992456,1728291177350,-3000000.0,0.00037065,90]
[339992457,1728291180420,-1489313.93834848,0.00037065,90]
[339992458,1728291180445,-403.46,0.000374,30]
[339992459,1728291180470,-150.0,0.00037425,120]
[339992460,1728291180495,-1837.2,0.00037534,120]
[339992461,1728291180520,-150.0,0.00037561,120]
[339992462,1728291180545,-269.57247262,0.00038,120]
[339992463,1728291180569,-808.07160812,0.00038,120]
[339992464,1728291180592,-500.0,0.00038,120]
[339992465,1728291180621,-400.0,0.00038,120]
[339992466,1728291180646,-250.0,0.00038,30]
[339992467,1728291180672,-1542.67,0.00038356,120]
[339992468,1728291180697,-366.47456023,0.00038356,120]
[339992469,1728291180721,-500.0,0.00038356,120]
[339992470,1728291180744,-1025.57,0.00038356,120]
[339992471,1728291180768,-513.40920643,0.00038356,120]
[339992472,1728291180793,-500.0,0.00038356,120]
[339992473,1728291180816,-2084.39,0.00038356,120]
[339992474,1728291180840,-500.0,0.00038356,120]
[339992475,1728291180865,-500.0,0.00038356,120]
[339992476,1728291180888,-501.1586499,0.00038356,120]
[339992477,1728291180915,-501.11885047,0.00038356,120]
[339992478,1728291180940,-500.0,0.00038356,120]
[339992479,1728291180966,-200.0,0.00038356,120]
[339992480,1728291180991,-505.86133125,0.00038356,120]
[339992481,1728291181017,-502.0942116,0.00038356,120]
[339992482,1728291181044,-504.55686118,0.00038356,30]
[339992483,1728291181068,-502.5,0.00038356,120]
[339992484,1728291181091,-503.38260265,0.00038356,90]
[339992485,1728291181116,-1127.5,0.00038356,120]
[339992486,1728291181140,-501.73051504,0.00038356,120]
[339992487,1728291181164,-501.1662143,0.00038356,120]
[339992488,1728291181188,-518.36416572,0.00038356,120]
[339992489,1728291181212,-183.83451884,0.00038356,120]
[339992490,1728291181235,-501.04292555,0.00038356,120]
[339992491,1728291181259,-500.0,0.00038356,120]
[339992492,1728291181286,-500.0,0.00038356,120]